bitfinex/quotes_SOLUSD_20220128
["timestamp","ask_amount","ask_price","bid_price","bid_amount"]
[1643369777298,16.979,88.44,88.362,35.09308085]
[1643369777299,0.25,88.439,88.362,35.09308085]
[1643369777498,16.983,88.42,88.362,35.09308085]
[1643369777899,0.25,88.419,88.362,35.09308085]
[1643369778701,0.25,88.419,88.372,6.0]
[1643369778899,0.25,88.439,88.373,0.25]
[1643369779300,16.979,88.44,88.373,0.25]
[1643369780003,16.979,88.44,88.373,6.25]
[1643369780200,16.979,88.44,88.373,6.0]
[1643369780400,16.979,88.44,88.374,0.25]
[1643369780602,64.87557773,88.44,88.374,0.25]
[1643369781203,16.979,88.44,88.374,0.25]
[1643369781801,0.25,88.439,88.374,0.25]
[1643369782203,43.54435445,88.439,88.374,0.25]
[1643369784008,43.54435445,88.439,88.373,6.0]
[1643369784208,16.98,88.43,88.373,6.0]
[1643369784408,3.11324638,88.429,88.362,35.09308085]
[1643369784611,3.36324638,88.429,88.362,35.09308085]
[1643369784810,3.36324638,88.429,88.363,0.25]
[1643369785011,3.063544,88.438,88.372,6.0]
[1643369785212,3.063544,88.44,88.38,13.59]
[1643369785413,3.063544,88.468,88.381,0.25]
[1643369785611,3.063544,88.466,88.39,6.0]
[1643369785821,40.80300838,88.465,88.391,28.77980875]
[1643369786014,16.974,88.46,88.391,34.77980875]
[1643369786416,0.25,88.459,88.391,34.77980875]
[1643369787715,0.25,88.464,88.391,34.77980875]
[1643369787915,3.11464393,88.463,88.391,34.77980875]
[1643369788115,0.25,88.464,88.391,34.77980875]
[1643369788315,0.25,88.464,88.391,34.52980875]
[1643369788516,0.25,88.464,88.391,28.52980875]
[1643369788517,16.975,88.46,88.391,28.52980875]
[1643369788718,3.063544,88.455,88.391,28.52980875]
[1643369788922,0.25,88.454,88.391,28.52980875]
[1643369789332,3.11452479,88.453,88.391,28.52980875]
[1643369789738,0.25,88.452,88.391,28.52980875]
[1643369789939,3.11452479,88.451,88.391,28.52980875]
[1643369790140,14.75410202,88.439,88.391,28.52980875]
[1643369790339,0.25,88.438,88.391,28.52980875]
[1643369791242,16.976,88.45,88.391,28.52980875]
[1643369791451,3.063544,88.46,88.391,28.52980875]
[1643369791649,0.25,88.449,88.391,28.52980875]
[1643369791849,3.063544,88.466,88.391,28.52980875]
[1643369792050,3.11074642,88.465,88.391,28.52980875]
[1643369792447,47.08613901,88.467,88.391,28.52980875]
[1643369792647,3.11074642,88.466,88.391,28.52980875]
[1643369792847,3.11074642,88.466,88.392,0.25]
[1643369793048,16.974,88.46,88.392,0.25]
[1643369793348,0.25,88.459,88.391,28.52980875]
[1643369793547,3.35944661,88.459,88.391,28.52980875]
[1643369793749,0.25,88.459,88.391,28.52980875]
[1643369793950,3.10944661,88.458,88.391,28.52980875]
[1643369794351,0.25,88.457,88.391,28.52980875]
[1643369794555,3.10944661,88.456,88.391,28.52980875]
[1643369794949,0.25,88.455,88.391,28.52980875]
[1643369795153,8.47097139,88.439,88.391,28.52980875]
[1643369795348,0.25,88.438,88.391,28.52980875]
[1643369796752,20.038544,88.46,88.391,28.52980875]
[1643369796951,16.975,88.46,88.391,28.52980875]
[1643369797152,0.25,88.459,88.391,28.52980875]
[1643369797754,35.87732138,88.459,88.391,28.52980875]
[1643369797954,35.62732138,88.459,88.391,28.52980875]
[1643369798153,16.976,88.45,88.391,28.52980875]
[1643369799159,16.976,88.45,88.401,6.0]
[1643369799355,0.25,88.449,88.401,6.0]
[1643369801359,0.25,88.458,88.401,6.0]
[1643369802862,35.62732138,88.459,88.401,6.0]
[1643369804268,3.36100936,88.458,88.401,6.0]
[1643369804663,3.11100936,88.457,88.401,6.0]
[1643369804861,0.25,88.456,88.401,6.0]
[1643369805062,0.25,88.456,88.34,16.976]
[1643369805063,16.976,88.45,88.34,16.976]
[1643369805261,0.25,88.449,88.353,22.6939]
[1643369805463,3.063544,88.447,88.353,22.6939]
[1643369805663,112.8,88.439,88.327,22.6939]
[1643369805865,3.063544,88.436,88.327,22.6939]
[1643369806063,22.99333302,88.435,88.328,38.26653333]
[1643369806262,16.981,88.43,88.328,38.26653333]
[1643369806663,3.36077887,88.429,88.328,38.26653333]
[1643369806865,3.36077887,88.429,88.338,6.0]
[1643369807062,16.981,88.43,88.339,23.0473]
[1643369807263,16.981,88.43,88.339,23.2973]
[1643369807466,16.981,88.43,88.35,25.35635627]
[1643369807664,19.92978902,88.435,88.35,25.35635627]
[1643369807874,19.92978902,88.435,88.351,0.25]
[1643369808105,19.92978902,88.435,88.35,25.35635627]
[1643369808301,3.3624283,88.434,88.351,23.8254]
[1643369808504,3.1124283,88.433,88.351,24.0754]
[1643369808904,0.25,88.432,88.351,24.0754]
[1643369809408,16.98,88.43,88.351,24.0754]
[1643369809605,3.063544,88.443,88.352,2.16577375]
[1643369809804,0.25,88.442,88.361,6.0]
[1643369810006,0.25,88.442,88.362,30.9919]
[1643369810406,16.978,88.44,88.363,0.25]
[1643369810607,35.43086337,88.439,88.363,0.25]
[1643369810806,35.68086337,88.439,88.363,0.25]
[1643369812107,16.98,88.43,88.364,2.16549417]
[1643369812310,16.98,88.43,88.365,38.51653333]
[1643369812311,0.25,88.429,88.365,38.51653333]
[1643369812708,0.25,88.429,88.365,38.26653333]
[1643369813112,16.981,88.42,88.365,38.26653333]
[1643369813309,20.37624703,88.419,88.365,38.26653333]
[1643369814809,16.984,88.41,88.365,38.26653333]
[1643369815010,16.984,88.41,88.341,24.3813]
[1643369815210,0.25,88.409,88.35,6.0]
[1643369815411,0.25,88.409,88.351,6.0]
[1643369816011,0.25,88.409,88.352,47.9366273]
[1643369816415,0.25,88.418,88.352,47.9366273]
[1643369817015,16.985,88.4,88.352,47.9366273]
[1643369817216,35.68086337,88.399,88.31,13.59]
[1643369817413,35.68086337,88.399,88.311,46.9232]
[1643369818218,35.68086337,88.399,88.312,44.81038426]
[1643369818617,35.68086337,88.399,88.313,0.25]
[1643369819019,16.988,88.39,88.313,0.25]
[1643369819440,0.25,88.389,88.313,0.25]
[1643369820043,16.989,88.38,88.311,46.9232]
[1643369820241,16.989,88.38,88.29,24.7543]
[1643369820441,16.989,88.38,88.27,13.59]
[1643369820442,0.25,88.379,88.272,47.641]
[1643369821040,20.37624703,88.379,88.273,40.41549044]
[1643369821241,16.995,88.37,88.273,40.41549044]
[1643369821441,30.3911,88.369,88.273,40.41549044]
[1643369821644,30.6411,88.369,88.273,40.41549044]
[1643369821841,30.6411,88.369,88.274,0.25]
[1643369822143,16.994,88.36,88.274,0.25]
[1643369822344,35.68086337,88.359,88.272,47.641]
[1643369822645,35.68086337,88.359,88.25,13.59]
[1643369822646,112.8,88.358,88.25,13.59]
[1643369822841,0.25,88.357,88.25,46.5317]
[1643369823040,0.25,88.357,88.26,6.0]
[1643369823243,56.662,88.35,88.261,22.7731]
[1643369823444,56.662,88.35,88.262,49.2986813]
[1643369823642,0.25,88.349,88.272,6.0]
[1643369823843,0.25,88.349,88.273,23.2881]
[1643369824045,0.25,88.349,88.273,23.0381]
[1643369824446,0.25,88.349,88.274,0.25]
[1643369825546,0.25,88.349,88.25,37.3486]
[1643369825748,23.7113,88.349,88.22,77.7391]
[1643369825949,47.7987,88.349,88.257,6.0]
[1643369826149,126.8490166,88.348,88.242,6.0]
[1643369826349,0.25,88.347,88.242,6.0]
[1643369826549,20.12624703,88.337,88.244,46.56707489]
[1643369826950,0.25,88.336,88.254,6.0]
[1643369827258,0.25,88.336,88.245,0.25]
[1643369828052,2.95669142,88.358,88.254,6.0]
[1643369828258,56.666,88.36,88.255,48.5857]
[1643369828452,23.8694,88.378,88.26,13.59]
[1643369828851,23.8694,88.378,88.261,113.05]
[1643369829052,38.60272279,88.352,88.262,17.05581471]
[1643369829255,38.60272279,88.352,88.263,113.05]
[1643369829455,0.25,88.351,88.263,113.05]
[1643369829654,0.25,88.351,88.263,126.76516121]
[1643369830453,23.8694,88.378,88.263,126.76516121]
[1643369830654,6.0,88.349,88.265,112.8]
[1643369830853,0.25,88.348,88.27,13.59]
[1643369831056,0.25,88.348,88.271,112.8]
[1643369831256,0.25,88.348,88.271,113.05]
[1643369832057,0.25,88.348,88.271,112.8]
[1643369832656,0.25,88.348,88.27,13.59]
[1643369832857,0.25,88.348,88.266,23.5112]
[1643369833256,0.25,88.348,88.255,23.3489]
[1643369833658,2.95669142,88.347,88.255,23.3489]
[1643369833860,0.25,88.346,88.238,24.4031]
[1643369834059,48.7354,88.346,88.248,6.0]
[1643369834257,2.95669142,88.345,88.248,6.0]
[1643369834658,112.8,88.334,88.248,6.0]
[1643369834961,0.25,88.333,88.249,34.80677156]
[1643369835361,0.25,88.333,88.25,2.41549417]
[1643369835561,56.661,88.36,88.25,2.41549417]
[1643369835562,56.661,88.36,88.251,23.4313]
[1643369835762,0.25,88.349,88.252,113.05]
[1643369836164,0.25,88.349,88.252,2.41549417]
[1643369836462,0.25,88.349,88.262,6.0]
[1643369836661,0.25,88.349,88.263,52.42551804]
[1643369836862,0.25,88.349,88.263,52.67551804]
[1643369838263,0.25,88.349,88.263,52.42551804]
[1643369839664,0.25,88.349,88.264,0.25]
[1643369839866,16.6871,88.475,88.271,67.48]
[1643369840067,16.6871,88.475,88.266,187.8]
[1643369840068,77.2727,88.491,88.315,0.319233]
[1643369840267,77.2727,88.491,88.326,0.31235603]
[1643369840268,3.09663426,88.455,88.326,0.31235603]
[1643369840469,3.09663426,88.472,88.345,0.31200082]
[1643369840667,3.09663426,88.48,88.35,169.86]
[1643369840868,40.32900289,88.479,88.36,13.59]
[1643369841069,3.09663426,88.478,88.37,6.0]
[1643369841267,28.09553426,88.478,88.371,27.1455304]
[1643369841473,3.09663426,88.477,88.371,33.1455304]
[1643369841669,6.0,88.468,88.371,27.1455304]
[1643369841869,40.62614209,88.449,88.371,27.1455304]
[1643369842268,0.25,88.448,88.372,0.25]
[1643369842671,0.25,88.448,88.372,24.6085]
[1643369843869,0.25,88.448,88.373,0.25]
[1643369844671,0.25,88.448,88.372,24.3585]
[1643369845074,16.981,88.44,88.36,16.32]
[1643369845280,6.25,88.439,88.35,16.32]
[1643369845677,6.25,88.439,88.351,0.25]
[1643369845878,6.25,88.439,88.351,31.24977]
[1643369847079,16.983,88.43,88.35,16.32]
[1643369847278,0.25,88.429,88.28,204.01]
[1643369847479,25.1188,88.429,88.291,112.8]
[1643369847680,25.1188,88.429,88.292,136.8582]
[1643369847881,25.1188,88.429,88.293,0.25]
[1643369848079,112.8,88.426,88.293,26.37029609]
[1643369848278,0.25,88.425,88.293,26.12029609]
[1643369848479,40.62614209,88.399,88.293,26.12029609]
[1643369848681,49.63,88.398,88.293,26.12029609]
[1643369848979,49.88,88.398,88.293,26.12029609]
[1643369849379,16.99,88.39,88.293,26.12029609]
[1643369849580,49.88,88.398,88.293,26.12029609]
[1643369849781,49.88,88.398,88.294,0.25]
[1643369850383,16.99,88.39,88.294,0.25]
[1643369850582,6.0,88.388,88.303,6.0]
[1643369850784,0.25,88.387,88.304,0.25]
[1643369851981,46.89551231,88.379,88.304,0.25]
[1643369852182,46.89551231,88.379,88.304,23.0599]
[1643369852388,0.25,88.378,88.304,23.0599]
[1643369853714,16.994,88.37,88.304,23.0599]
[1643369853912,0.25,88.369,88.304,23.0599]
[1643369856012,6.0,88.36,88.304,23.0599]
[1643369856212,40.59515834,88.359,88.304,23.0599]
[1643369857414,40.59515834,88.359,88.304,20.22797359]
[1643369857614,16.988,88.4,88.315,112.8]
[1643369857815,4.58020311,88.442,88.32,220.33]
[1643369858017,24.349,88.445,88.33,6.0]
[1643369858217,41.5793,88.445,88.341,112.8]
[1643369858613,41.5793,88.445,88.34,220.33]
[1643369858614,47.39757619,88.444,88.352,112.8]
[1643369858815,47.39757619,88.444,88.361,25.92693377]
[1643369859014,47.39757619,88.444,88.362,112.8]
[1643369859215,47.39757619,88.444,88.362,113.05]
[1643369859817,47.39757619,88.444,88.362,135.63664823]
[1643369860224,47.39757619,88.444,88.362,22.58664823]
[1643369860421,47.39757619,88.444,88.363,0.25]
[1643369861221,0.25,88.443,88.363,0.25]
[1643369861622,0.25,88.443,88.362,22.58664823]
[1643369861820,3.1453419,88.372,88.362,22.58664823]
[1643369862020,3.1453419,88.372,88.362,28.58664823]
[1643369862420,3.1453419,88.372,88.362,22.58664823]
[1643369862821,3.1453419,88.372,88.363,0.25]
[1643369863020,3.1453419,88.372,88.362,22.58664823]
[1643369864622,3.1453419,88.372,88.361,25.92693377]
[1643369864922,3.1453419,88.372,88.34,16.32]
[1643369865123,3.1453419,88.372,88.32,16.32]
[1643369865323,0.25,88.371,88.32,16.32]
[1643369865823,42.46238182,88.371,88.32,16.32]
[1643369866822,0.25,88.371,88.32,16.32]
[1643369867423,0.25,88.371,88.296,22.8414]
[1643369867930,6.0,88.362,88.296,22.8414]
[1643369868128,16.996,88.36,88.296,22.8414]
[1643369868429,46.87912363,88.359,88.297,25.74672355]
[1643369870530,46.87912363,88.359,88.27,13.59]
[1643369872031,3.1453419,88.305,88.27,13.59]
[1643369872431,0.25,88.304,88.27,13.59]
[1643369872633,3.1453419,88.305,88.27,13.59]
[1643369873238,3.1453419,88.305,88.271,0.25]
[1643369873432,40.89253077,88.304,88.27,13.59]
[1643369874235,40.89253077,88.304,88.251,24.7132]
[1643369874636,0.25,88.303,88.251,24.7132]
[1643369874833,0.25,88.303,88.252,30.66664316]
[1643369875233,0.25,88.303,88.251,24.7132]
[1643369876340,0.25,88.303,88.252,26.76544041]
[1643369876738,3.1453419,88.305,88.253,0.25]
[1643369877342,3.1453419,88.305,88.252,26.76544041]
[1643369877641,3.1453419,88.305,88.25,13.59]
[1643369877642,0.25,88.304,88.25,13.59]
[1643369878242,0.25,88.304,88.23,13.59]
[1643369878542,36.65597495,88.304,88.24,6.0]
[1643369878745,6.0,88.295,88.238,6.0]
[1643369878946,6.0,88.295,88.244,6.0]
[1643369879144,0.25,88.294,88.238,6.0]
[1643369879568,0.25,88.294,88.221,6.0]
[1643369879768,0.25,88.294,88.222,29.20332669]
[1643369880170,0.25,88.303,88.232,6.0]
[1643369880769,0.25,88.303,88.233,0.25]
[1643369881372,0.25,88.303,88.232,6.0]
[1643369881573,0.25,88.303,88.233,0.25]
[1643369882571,6.0,88.294,88.233,0.25]
[1643369882777,36.40597495,88.304,88.233,0.25]
[1643369883172,17.008,88.3,88.233,6.25]
[1643369883574,36.40597495,88.304,88.233,6.25]
[1643369883575,3.1453419,88.247,88.233,6.25]
[1643369883973,3.1453419,88.247,88.233,0.25]
[1643369884174,3.1453419,88.247,88.243,6.0]
[1643369884375,3.1453419,88.247,88.233,0.25]
[1643369884975,3.1453419,88.247,88.218,6.0]
[1643369884976,3.1453419,88.247,88.22,6.0]
[1643369885177,42.8687848,88.246,88.22,6.0]
[1643369885377,3.1453419,88.247,88.221,0.25]
[1643369885577,3.1453419,88.247,88.221,6.25]
[1643369888585,3.1453419,88.247,88.23,6.0]
[1643369888785,3.1453419,88.247,88.231,0.25]
[1643369888987,3.1453419,88.247,88.231,6.25]
[1643369889196,3.1453419,88.247,88.235,6.0]
[1643369889392,3.1453419,88.247,88.241,6.0]
[1643369889992,3.1453419,88.247,88.235,6.0]
[1643369890389,3.1453419,88.247,88.23,6.0]
[1643369890990,41.93934965,88.246,88.23,6.0]
[1643369891193,41.93934965,88.246,88.231,0.25]
[1643369891992,3.1453419,88.247,88.231,0.25]
[1643369892389,3.1453419,88.247,88.23,0.2492614]
[1643369892590,3.1453419,88.247,88.212,25.51613085]
[1643369892990,3.1453419,88.247,88.208,21.30626922]
[1643369893390,3.1453419,88.247,88.221,112.8]
[1643369894394,3.1453419,88.247,88.231,6.0]
[1643369894791,3.1453419,88.247,88.232,0.25]
[1643369896593,3.1453419,88.247,88.221,1.56506701]
[1643369896793,0.25,88.246,88.221,1.56506701]
[1643369896997,0.25,88.246,88.197,1.56506701]
[1643369897199,0.25,88.246,88.195,1.56506701]
[1643369897394,0.25,88.246,88.192,7.56506701]
[1643369897599,3.1453419,88.247,88.194,1.56506701]
[1643369898019,4.58020311,88.351,88.204,6.0]
[1643369898221,1.54583861,88.326,88.217,1.56506701]
[1643369898527,1.54583861,88.332,88.23,13.59]
[1643369898720,1.54583861,88.344,88.24,13.59]
[1643369898920,48.31379872,88.343,88.244,1.56506701]
[1643369899120,48.31379872,88.343,88.254,6.0]
[1643369899320,48.31379872,88.343,88.26,13.59]
[1643369899824,48.31379872,88.343,88.261,0.25]
[1643369900625,48.31379872,88.343,88.261,113.05]
[1643369900825,0.25,88.342,88.261,113.05]
[1643369901425,48.31379872,88.343,88.261,113.05]
[1643369902227,1.54583861,88.357,88.262,2.16415796]
[1643369902429,1.54583861,88.358,88.272,112.8]
[1643369902627,1.54583861,88.377,88.28,13.59]
[1643369902826,16.991,88.39,88.286,1.56506701]
[1643369902827,1.54583861,88.384,88.286,1.56506701]
[1643369903026,6.0,88.374,88.296,6.0]
[1643369903527,6.0,88.374,88.297,0.25]
[1643369903727,6.0,88.374,88.301,6.0]
[1643369904127,6.0,88.374,88.302,0.25]
[1643369904326,6.0,88.374,88.301,6.0]
[1643369904527,6.0,88.37,88.301,6.0]
[1643369904727,6.0,88.37,88.3,6.0]
[1643369904930,6.0,88.368,88.3,6.0]
[1643369905127,6.0,88.366,88.273,70.8353]
[1643369905326,6.0,88.366,88.261,2.16415796]
[1643369905327,0.25,88.365,88.27,1.56506701]
[1643369905531,44.99608484,88.35,88.242,1.56506701]
[1643369905727,1.54583861,88.346,88.238,1.56506701]
[1643369905928,1.54583861,88.342,88.243,0.25]
[1643369906128,1.54583861,88.34,88.243,0.25]
[1643369906326,6.0,88.332,88.243,0.25]
[1643369906530,1.54583861,88.336,88.243,0.25]
[1643369906828,40.67633572,88.327,88.243,0.25]
[1643369907029,17.004,88.32,88.225,1.56506701]
[1643369907227,6.0,88.317,88.227,0.25]
[1643369907430,0.25,88.319,88.224,1.56506701]
[1643369907729,6.0,88.31,88.224,1.56506701]
[1643369908129,0.25,88.316,88.223,1.56506701]
[1643369908130,0.25,88.309,88.223,1.56506701]
[1643369908733,0.25,88.309,88.224,1.56506701]
[1643369909330,0.25,88.316,88.217,1.56506701]
[1643369909529,0.25,88.316,88.215,1.56506701]
[1643369909730,0.25,88.316,88.214,1.56506701]
[1643369909933,6.0,88.315,88.214,1.56506701]
[1643369910132,40.86071352,88.299,88.214,1.56506701]
[1643369910429,0.25,88.298,88.215,0.25]
[1643369910631,0.25,88.298,88.213,1.56506701]
[1643369910830,0.25,88.298,88.212,1.56506701]
[1643369911030,112.8,88.289,88.203,1.56506701]
[1643369911231,17.01,88.29,88.212,2.16415796]
[1643369911433,40.86071352,88.299,88.222,1.56506701]
[1643369911632,1.54583861,88.342,88.222,1.56506701]
[1643369911832,1.54583861,88.342,88.232,6.0]
[1643369912030,1.54583861,88.344,88.24,13.59]
[1643369912231,1.54583861,88.347,88.241,23.1355]
[1643369912436,1.54583861,88.347,88.241,25.54965796]
[1643369912634,40.84908059,88.346,88.242,30.52612818]
[1643369912834,42.3949192,88.346,88.243,0.25]
[1643369913237,40.84908059,88.346,88.243,0.25]
[1643369913435,40.84908059,88.346,88.252,6.0]
[1643369913636,1.54583861,88.344,88.252,6.0]
[1643369913835,6.0,88.336,88.253,0.25]
[1643369914036,6.0,88.334,88.253,0.25]
[1643369914236,6.0,88.334,88.25,13.59]
[1643369914436,113.05,88.333,88.242,30.52612818]
[1643369914636,6.0,88.323,88.243,0.25]
[1643369914841,17.005,88.32,88.243,0.25]
[1643369915235,37.11458742,88.309,88.243,0.25]
[1643369915637,6.0,88.299,88.243,0.25]
[1643369915835,0.25,88.298,88.243,0.25]
[1643369917242,6.0,88.299,88.243,0.25]
[1643369918242,0.25,88.298,88.243,0.25]
[1643369918441,0.25,88.298,88.242,30.52612818]
[1643369918844,0.25,88.298,88.222,1.56506701]
[1643369918845,12.09,88.298,88.222,1.56506701]
[1643369919041,12.09,88.298,75.204,39.06003438]
[1643369919042,6.0,88.288,88.215,1.56506701]
[1643369919242,17.012,88.28,88.21,1.56506701]
[1643369919442,17.012,88.28,88.205,1.56506701]
[1643369919641,6.0,88.27,88.206,1.56506701]
[1643369919843,43.29664787,88.269,88.207,22.7352413]
[1643369920251,43.29664787,88.269,88.208,0.25]
[1643369921544,2.5361114,88.217,88.208,0.25]
[1643369921943,2.5361114,88.217,88.202,0.25]
[1643369922143,2.5361114,88.217,88.204,1.56506701]
[1643369922343,2.5361114,88.217,88.205,0.25]
[1643369922545,2.5361114,88.217,88.201,0.25]
[1643369922846,2.5361114,88.217,88.201,28.19564049]
[1643369923046,2.5361114,88.217,88.201,0.25]
[1643369924044,2.5361114,88.217,88.193,1.56506701]
[1643369924276,0.25,88.216,88.189,1.56506701]
[1643369924458,35.04598781,88.216,88.168,1.56506701]
[1643369924648,35.04598781,88.216,88.165,1.56506701]
[1643369924949,35.04598781,88.216,88.167,1.56506701]
[1643369925350,35.04598781,88.216,88.166,33.11870333]
[1643369925547,35.04598781,88.216,88.168,31.55363632]
[1643369925947,6.0,88.206,88.166,31.55363632]
[1643369926347,6.0,88.206,88.166,3.47714916]
[1643369926348,0.25,88.205,88.166,3.47714916]
[1643369926547,6.0,88.206,88.166,3.47714916]
[1643369926747,2.5361114,88.217,88.167,33.71779428]
[1643369926948,2.5361114,88.217,88.167,31.55363632]
[1643369927146,0.25,88.216,88.168,31.55363632]
[1643369927348,2.5361114,88.217,88.168,31.55363632]
[1643369927549,2.5361114,88.217,88.167,31.55363632]
[1643369927747,2.5361114,88.217,88.167,31.80363632]
[1643369928348,2.5361114,88.217,88.168,31.55363632]
[1643369928751,43.09150957,88.216,88.166,3.47714916]
[1643369929051,43.09150957,88.216,88.156,3.72922497]
[1643369929352,0.25,88.215,88.167,31.55583998]
[1643369929549,0.25,88.215,88.157,31.80583998]
[1643369929949,0.25,88.215,88.158,31.55583998]
[1643369930251,0.25,88.215,88.158,54.23656234]
[1643369930453,0.25,88.215,88.159,0.25]
[1643369930649,0.25,88.216,88.159,3.97922497]
[1643369930850,0.25,88.216,88.164,1.56506701]
[1643369931249,38.82622428,88.216,88.165,31.55583998]
[1643369931652,38.82622428,88.216,88.158,22.68072236]
[1643369931853,38.82622428,88.216,88.159,0.25]
[1643369932051,38.82622428,88.216,88.159,31.55850706]
[1643369932250,2.5361114,88.176,88.159,31.55850706]
[1643369932450,2.5361114,88.176,88.158,22.68072236]
[1643369933453,2.5361114,88.176,88.159,0.25]
[1643369934052,0.25,88.216,88.16,16.34]
[1643369934254,43.86871988,88.266,88.161,24.8539]
[1643369934452,6.0,88.257,88.161,24.8539]
[1643369934654,6.0,88.256,88.161,24.8539]
[1643369934853,0.25,88.255,88.161,24.8539]
[1643369935055,0.25,88.255,88.162,2.16415796]
[1643369935254,0.25,88.255,88.163,0.25]
[1643369935657,0.25,88.255,88.162,2.16415796]
[1643369935855,0.25,88.255,88.163,0.25]
[1643369936054,6.0,88.25,88.163,0.25]
[1643369936255,0.25,88.249,88.163,0.25]
[1643369936456,0.25,88.249,88.167,1.56506701]
[1643369936655,0.25,88.249,88.18,16.34]
[1643369936854,0.25,88.249,88.175,1.56506701]
[1643369936855,0.25,88.249,88.19,16.34]
[1643369937357,0.25,88.249,88.191,6.69151184]
[1643369937558,0.25,88.256,88.191,54.06711184]
[1643369937757,6.0,88.274,88.192,2.16415796]
[1643369938160,6.0,88.274,88.193,1.81506701]
[1643369938657,45.5189,88.294,88.197,1.56506701]
[1643369938857,45.5189,88.294,88.21,16.34]
[1643369939057,6.0,88.284,88.21,16.34]
[1643369939276,0.25,88.283,88.211,0.25]
[1643369939684,0.25,88.283,88.211,21.82658115]
[1643369940082,6.0,88.275,88.211,21.57658115]
[1643369940282,0.25,88.274,88.211,21.57658115]
[1643369942385,0.25,88.274,88.212,0.25]
[1643369942786,0.25,88.274,88.211,21.57658115]
[1643369943288,0.25,88.274,88.212,0.25]
[1643369943490,0.25,88.274,88.211,21.57658115]
[1643369944188,0.25,88.274,88.212,0.25]
[1643369944887,0.25,88.284,88.212,0.25]
[1643369945087,0.25,88.284,88.211,21.57658115]
[1643369945286,0.25,88.284,88.212,0.25]
[1643369946991,0.25,88.284,88.213,2.16430504]
[1643369947190,1.54583861,88.324,88.221,6.0]
[1643369947191,6.0,88.307,88.221,6.0]
[1643369947391,6.0,88.307,88.23,16.34]
[1643369947690,40.09869645,88.306,88.231,7.54565305]
[1643369947891,40.09869645,88.306,88.231,7.79565305]
[1643369948091,6.0,88.296,88.231,7.79565305]
[1643369948693,0.25,88.295,88.231,7.79565305]
[1643369949294,0.25,88.305,88.231,7.79565305]
[1643369949594,1.54583861,88.342,88.231,7.79565305]
[1643369949796,1.54583861,88.342,88.232,2.16430504]
[1643369949994,47.9282,88.359,88.26,16.993]
[1643369950194,1.54583861,88.369,88.27,16.34]
[1643369950397,1.54583861,88.369,88.28,16.34]
[1643369950598,1.54583861,88.385,88.29,22.34]
[1643369950799,1.54583861,88.395,88.291,0.25]
[1643369950999,41.64025774,88.394,88.291,21.82658115]
[1643369951205,43.18609635,88.394,88.291,21.82658115]
[1643369951402,6.0,88.384,88.291,21.82658115]
[1643369952298,6.0,88.384,88.291,46.5166]
[1643369952501,2.95669142,88.383,88.263,24.6591]
[1643369952699,111.9,88.366,88.27,16.34]
[1643369952999,16.999,88.36,88.263,6.0]
[1643369953203,42.51443373,88.355,88.273,6.0]
[1643369953501,0.25,88.354,88.25,16.34]
[1643369953698,112.8,88.344,88.25,16.34]
[1643369953899,0.25,88.343,88.25,16.34]
[1643369954099,6.0,88.334,88.25,16.34]
[1643369954298,47.25787206,88.332,88.25,16.34]
[1643369954698,6.0,88.322,88.25,16.34]